bitfinex/quotes_SOLUSD_20250920
["timestamp","ask_amount","ask_price","bid_price","bid_amount"]
[1758381313296,0.1,240.29,240.28,6.32239548]
[1758381315500,0.1,240.29,240.28,19.91798949]
[1758381316115,0.1,240.29,240.28,52.43798949]
[1758381316506,0.1,240.29,240.28,52.72231263]
[1758381318692,0.1,240.29,240.28,54.39005638]
[1758381322013,0.1,240.29,240.28,48.47333776]
[1758381322210,0.1,240.29,240.28,48.25617827]
[1758381322602,0.1,240.29,240.28,15.75617827]
[1758381322807,0.1,240.29,240.28,15.04617827]
[1758381323311,0.1,240.29,240.28,47.54617827]
[1758381324525,0.1,240.29,240.28,46.09559401]
[1758381324705,0.1,240.29,240.28,47.54617827]
[1758381324911,0.1,240.29,240.28,15.04617827]
[1758381325114,0.1,240.29,240.28,47.54617827]
[1758381329027,0.1,240.29,240.28,48.25617827]
[1758381331031,0.1,240.29,240.28,47.54617827]
[1758381331814,0.1,240.29,240.28,15.04617827]
[1758381332016,0.1,240.29,240.28,47.54617827]
[1758381332823,0.1,240.29,240.28,48.25617827]
[1758381334833,0.1,240.29,240.28,15.75617827]
[1758381335033,0.1,240.29,240.28,48.23617827]
[1758381335540,0.1,240.29,240.28,46.78559401]
[1758381335741,0.1,240.29,240.28,48.23617827]
[1758381336542,4.26163802,240.29,240.23,35.36128095]
[1758381336725,4.26163802,240.29,240.2,13.59559401]
[1758381336927,0.67,240.28,240.25,1.45058426]
[1758381337331,0.67,240.28,240.26,32.48]
[1758381337843,0.67,240.27,240.26,32.48]
[1758381338243,15.33573307,240.29,240.26,32.48]
[1758381338439,0.67,240.28,240.26,33.93058426]
[1758381338849,4.26163802,240.29,240.26,34.64058426]
[1758381339053,4.26163802,240.29,240.26,33.19]
[1758381339222,4.26163802,240.29,240.26,34.64058426]
[1758381339544,0.1,240.29,240.27,2.16058426]
[1758381339847,0.1,240.29,240.28,34.64058426]
[1758381340147,0.1,240.29,240.28,48.23617827]
[1758381344448,0.1,240.29,240.28,47.52617827]
[1758381344652,4.93163802,240.29,240.28,1.45058426]
[1758381344850,4.26163802,240.29,240.28,33.93058426]
[1758381345747,0.1,240.29,240.28,33.93058426]
[1758381348651,0.1,240.29,240.26,14.30559401]
[1758381348834,4.26165835,240.29,240.28,1.45058426]
[1758381349026,3.76165835,240.29,240.28,1.45058426]
[1758381349229,0.1,240.33,240.29,13.59559401]
[1758381349432,0.1,240.33,240.32,1.45058426]
[1758381349651,0.1,240.33,240.32,33.93058426]
[1758381352060,0.1,240.33,240.32,32.48]
[1758381352254,0.1,240.33,240.32,33.93058426]
[1758381355364,4.93094536,240.33,240.32,32.46]
[1758381358760,4.93094536,240.33,240.31,32.46]
[1758381359066,0.66,240.32,240.31,32.46]
[1758381359853,4.8211185,240.32,240.31,32.46]
[1758381360969,0.1,240.33,240.31,32.46]
[1758381361281,0.1,240.33,240.31,33.17]
[1758381362261,0.1,240.33,240.31,32.46]
[1758381362575,0.1,240.33,240.32,0.71]
[1758381362977,0.1,240.33,240.32,2.97513589]
[1758381367483,0.1,240.33,240.32,0.71]
[1758381367853,0.1,240.33,240.32,2.97513589]
[1758381369377,0.1,240.33,240.32,2.26513589]
[1758381369566,0.1,240.33,240.31,32.46]
[1758381369767,0.1,240.33,240.31,34.72513589]
[1758381369967,0.1,240.33,240.31,32.46]
[1758381370187,0.79,240.33,240.32,32.46]
[1758381370383,0.1,240.33,240.32,32.46]
[1758381370778,4.26095222,240.33,240.32,32.46]
[1758381371490,0.1,240.33,240.32,32.46]
[1758381372562,4.26094536,240.33,240.32,32.46]
[1758381372977,4.26094536,240.33,240.32,35.42513589]
[1758381372978,0.1,240.33,240.32,35.42513589]
[1758381373778,0.1,240.33,240.32,33.16]
[1758381373981,0.1,240.33,240.32,35.42513589]
[1758381374773,0.1,240.33,240.32,2.96513589]
[1758381374969,0.1,240.33,240.32,35.40513589]
[1758381375795,0.1,240.33,240.32,33.14]
[1758381375998,0.1,240.33,240.32,35.40513589]
[1758381377894,0.1,240.33,240.32,53.44617154]
[1758381382202,0.1,240.33,240.32,51.18103565]
[1758381382415,0.1,240.33,240.32,53.44617154]
[1758381385124,0.79,240.33,240.29,0.14216157]
[1758381385410,0.69,240.32,240.31,15.8607299]
[1758381385582,0.1,240.33,240.31,48.3007299]
[1758381385785,0.1,240.33,240.32,2.26513589]
[1758381388507,0.1,240.33,240.32,20.0218484]
[1758381388812,0.1,240.33,240.32,20.6918484]
[1758381390087,0.1,240.33,240.32,16.5307299]
[1758381390284,0.1,240.33,240.32,20.6918484]
[1758381390801,0.1,240.33,240.32,20.97617154]
[1758381395127,0.1,240.33,240.32,20.30617154]
[1758381395903,0.1,240.33,240.32,48.2807299]
[1758381396714,0.1,240.33,240.32,53.1118484]
[1758381399527,0.1,240.33,240.32,53.39617154]
[1758381407628,0.1,240.33,240.32,53.37617154]
[1758381409438,0.1,240.33,240.32,20.30617154]
[1758381409627,0.1,240.33,240.32,52.70617154]
[1758381410032,0.1,240.33,240.32,53.37617154]
[1758381411435,0.1,240.33,240.32,55.04377623]
[1758381414425,0.1,240.33,240.32,54.37377623]
[1758381414743,0.1,240.33,240.32,55.04377623]
[1758381414939,0.1,240.39,240.38,44.79559401]
[1758381415142,2.90468726,240.49,240.39,0.14216157]
[1758381415326,3.5925789,240.49,240.48,2.26513589]
[1758381415521,0.79,240.49,240.48,34.66513589]
[1758381415719,0.1,240.49,240.48,48.2607299]
[1758381416220,1e-08,240.5,240.49,0.14216157]
[1758381416420,0.1,240.59,240.55,0.14216157]
[1758381416632,0.1,240.79,240.63,13.59559401]
[1758381416633,3.51863232,240.73,240.63,13.59559401]
[1758381416836,13.50733268,240.78,240.63,13.59559401]
[1758381416837,0.72,240.68,240.63,13.59559401]
[1758381417041,2.79863232,240.74,240.67,2.26513589]
[1758381417360,4.15422165,240.72,240.68,34.64513589]
[1758381417527,0.72,240.73,240.68,34.64513589]
[1758381417730,4.15422668,240.72,240.68,34.64513589]
[1758381418129,0.82,240.69,240.63,13.59559401]
[1758381418349,0.72,240.68,240.65,13.59559401]
[1758381418541,4.25475709,240.69,240.67,2.26513589]
[1758381418848,4.25475709,240.69,240.68,32.38]
[1758381419051,4.97475709,240.69,240.68,32.38]
[1758381419445,0.82,240.69,240.68,32.38]
[1758381420848,4.15489446,240.68,240.62,31.34216157]
[1758381421041,4.15489446,240.68,240.63,32.38]
[1758381421241,4.15489446,240.68,240.66,2.26513589]
[1758381421450,0.1,240.69,240.67,32.38]
[1758381421747,0.72,240.68,240.67,32.38]
[1758381422344,4.1550671,240.67,240.63,32.38]
[1758381422652,2.98513589,240.66,240.63,32.38]
[1758381422839,0.66,240.65,240.57,2.26513589]
[1758381423153,0.66,240.64,240.58,32.36]
[1758381423347,0.66,240.63,240.58,32.36]
[1758381423528,0.66,240.62,240.58,34.62513589]
[1758381423723,14.54394348,240.65,240.58,33.80619938]
[1758381423930,0.66,240.61,240.59,32.36]
[1758381424249,1.44619938,240.62,240.6,32.36]
[1758381424635,2.10619938,240.61,240.59,32.36]
[1758381424835,2.10619938,240.6,240.59,32.36]
[1758381425042,2.10619938,240.6,240.57,32.36]
[1758381425237,0.66,240.59,240.57,32.36]
[1758381425428,0.66,240.58,240.57,32.36]
[1758381426151,0.66,240.58,240.55,32.36]
[1758381426343,14.54757055,240.59,240.49,74.36870928]
[1758381426344,0.66,240.57,240.49,74.36870928]
[1758381426546,0.66,240.57,240.53,1.44619938]
[1758381426747,0.66,240.57,240.54,32.36]
[1758381426947,4.15644873,240.59,240.54,32.36]
[1758381426948,0.66,240.56,240.54,32.36]
[1758381427150,0.66,240.55,240.49,74.36870928]
[1758381427358,0.66,240.55,240.51,1.44619938]
[1758381427553,0.66,240.55,240.5,32.36]
[1758381427880,2.10619938,240.54,240.5,32.36]
[1758381428167,0.66,240.53,240.5,32.36]
[1758381428461,13.16182318,240.57,240.52,1.44619938]
[1758381428752,4.81685873,240.57,240.51,1.44619938]
[1758381428955,0.66,240.57,240.52,1.44619938]
[1758381429140,0.66,240.56,240.52,1.44619938]
[1758381429337,0.66,240.55,240.51,1.44619938]
[1758381429960,4.1568195,240.57,240.52,1.44619938]
[1758381430172,0.66,240.56,240.52,1.44619938]
[1758381430732,0.66,240.55,240.5,33.80619938]
[1758381430932,0.66,240.54,240.5,33.80619938]
[1758381431162,0.66,240.53,240.5,32.36]
[1758381431667,4.15783127,240.51,240.48,32.36]
[1758381431868,0.66,240.5,240.48,32.36]
[1758381432035,1.44619938,240.54,240.48,32.36]
[1758381432232,0.66,240.53,240.48,32.36]
[1758381432433,0.66,240.52,240.48,32.36]
[1758381432634,0.66,240.51,240.48,32.36]
[1758381432940,0.66,240.5,240.48,32.36]
[1758381433140,0.66,240.49,240.48,32.36]
[1758381433656,0.66,240.49,240.45,33.80619938]
[1758381433841,4.81818805,240.49,240.45,33.80619938]
[1758381434157,4.81818805,240.49,240.46,1.44619938]
[1758381434361,4.15818805,240.49,240.45,1.44619938]
[1758381434735,0.66,240.51,240.46,1.44619938]
[1758381435044,0.66,240.5,240.46,1.44619938]
[1758381435246,0.66,240.5,240.44,32.36]
[1758381435447,0.66,240.5,240.46,1.44619938]
[1758381436066,4.15812614,240.5,240.44,32.36]
[1758381436242,0.66,240.49,240.46,1.44619938]
[1758381436972,0.66,240.49,240.45,1.44619938]
[1758381437272,4.15812614,240.5,240.44,32.36]
[1758381437479,0.66,240.48,240.44,32.36]
[1758381437682,5.60432552,240.5,240.44,32.36]
[1758381437884,6.26432552,240.5,240.44,32.36]
[1758381438184,4.81812614,240.5,240.44,32.36]
[1758381438377,4.81812614,240.5,240.44,33.80619938]
[1758381438883,4.81812614,240.5,240.44,32.36]
[1758381439088,4.81812614,240.5,240.44,33.80619938]
[1758381440480,12.50442865,240.51,240.46,1.44619938]
[1758381440777,0.66,240.51,240.46,1.44619938]
[1758381441160,16.6608978,240.53,240.47,1.44619938]
[1758381441373,43.69878486,240.56,240.49,1.44619938]
[1758381441684,43.15713988,240.55,240.49,1.44619938]
[1758381442267,43.81713988,240.55,240.48,2.15619938]
[1758381442576,43.15713988,240.55,240.48,0.71]
[1758381442788,0.66,240.58,240.53,1.44619938]
[1758381442972,0.66,240.58,240.53,2.15619938]
[1758381443154,4.15627597,240.6,240.54,1.44619938]
[1758381443354,4.81627597,240.6,240.54,2.15619938]
[1758381445875,4.81627597,240.6,240.5,4.15800415]
[1758381446089,6.26247535,240.6,240.54,1.44619938]
[1758381446273,6.26247535,240.6,240.53,0.72]
[1758381446581,6.26247535,240.6,240.54,1.44619938]
[1758381446971,4.81627597,240.6,240.54,1.44619938]
[1758381447178,0.68,240.59,240.53,2.16619938]
[1758381448175,4.15662149,240.58,240.53,2.16619938]
[1758381448368,4.83662149,240.58,240.53,2.16619938]
[1758381448569,4.83662149,240.58,240.54,1.44619938]
[1758381448769,4.15644647,240.6,240.55,0.72]
[1758381448981,0.68,240.59,240.54,1.44619938]
[1758381449183,0.68,240.59,240.49,45.97559401]
[1758381449184,4.15594931,240.62,240.57,1.44619938]
[1758381449386,4.15594931,240.62,240.58,1.44619938]
[1758381449886,0.68,240.64,240.59,0.72]
[1758381449887,4.83574752,240.64,240.59,0.72]
[1758381450584,6.2819469,240.64,240.59,0.72]
[1758381451000,4.83574752,240.64,240.59,0.72]
[1758381451168,4.15574752,240.64,240.6,0.72]
[1758381451491,4.15574752,240.64,240.59,1.44619938]
[1758381451492,4.15574752,240.64,240.61,0.72]
[1758381451784,4.15574752,240.64,240.58,2.16619938]
[1758381451976,51.53613638,240.66,240.59,1.44619938]
[1758381452177,0.1,240.69,240.63,1.44619938]
[1758381452366,0.1,240.69,240.64,1.44619938]
[1758381452566,0.1,240.69,240.65,0.72]
[1758381453072,0.1,240.69,240.64,1.44619938]
[1758381453073,0.1,240.69,240.66,0.72]
[1758381453472,0.1,240.69,240.67,0.72]
[1758381453888,0.1,240.69,240.68,0.72]
[1758381454707,4.93472184,240.69,240.64,0.72]
[1758381454877,6.38092122,240.69,240.64,0.72]
[1758381455067,5.70092122,240.69,240.65,0.72]
[1758381455266,4.25472184,240.69,240.65,0.72]
[1758381455693,4.25472184,240.69,240.63,0.72]
[1758381455879,5.70092122,240.69,240.63,0.72]
[1758381456077,5.70092122,240.69,240.63,2.16619938]
[1758381456800,0.1,240.69,240.64,0.72]
[1758381457086,0.1,240.69,240.65,0.72]
[1758381457290,4.25474028,240.69,240.65,0.72]
[1758381457476,0.1,240.69,240.66,0.72]
[1758381457681,0.1,240.69,240.68,15.04179339]
[1758381457895,0.1,240.69,240.68,15.76179339]
[1758381458096,2.22619938,240.69,240.6,32.36]
[1758381458390,1.44619938,240.68,240.61,0.72]
[1758381458594,2.12619938,240.68,240.61,0.72]
[1758381458801,4.25483678,240.69,240.63,1.44619938]
[1758381458976,4.25483678,240.69,240.63,2.16619938]
[1758381460578,4.25483678,240.69,240.64,0.72]
[1758381460772,4.25483678,240.69,240.65,0.72]
[1758381460993,0.1,240.69,240.64,1.44619938]
[1758381461196,0.1,240.69,240.66,0.72]
[1758381461578,3.82906818,240.71,240.66,0.72]
[1758381462012,3.4628688,240.71,240.66,0.72]
[1758381462305,3.4628688,240.71,240.64,2.16619938]
[1758381462597,1.44619938,240.69,240.62,2.16619938]
[1758381462973,2.12619938,240.69,240.62,34.52619938]
[1758381463180,0.68,240.69,240.62,34.52619938]
[1758381463690,0.68,240.69,240.63,1.44619938]
[1758381463895,4.15489446,240.68,240.63,1.44619938]
[1758381464082,4.83489446,240.68,240.63,1.44619938]
[1758381464283,4.83489446,240.68,240.63,0.72]
[1758381464502,4.83489446,240.68,240.63,2.16619938]
[1758381465198,4.15489446,240.68,240.58,31.2]
[1758381465407,0.68,240.67,240.62,1.44619938]
[1758381465585,0.68,240.67,240.62,2.16619938]
[1758381465782,4.15489446,240.68,240.61,1.44619938]
[1758381465783,0.68,240.66,240.61,1.44619938]
[1758381465983,0.68,240.66,240.61,2.16619938]
[1758381466199,0.68,240.66,240.61,0.72]
[1758381466501,0.68,240.66,240.62,1.44619938]
[1758381466718,4.83539172,240.66,240.62,1.44619938]
[1758381466927,4.83539172,240.66,240.61,1.44619938]
[1758381467407,4.83539172,240.66,240.57,46.29514908]
[1758381467408,1.44619938,240.64,240.57,46.29514908]
[1758381467602,4.15539172,240.66,240.6,1.44619938]
[1758381467795,4.15539172,240.66,240.61,1.44619938]
[1758381468001,4.83539172,240.66,240.6,2.16619938]
[1758381468927,4.83539172,240.66,240.6,0.72]
[1758381469420,4.15539172,240.66,240.61,1.44619938]
[1758381469588,4.15539172,240.66,240.62,0.72]
[1758381469794,4.15539172,240.66,240.61,1.44619938]
[1758381469993,4.15539172,240.66,240.62,0.72]
[1758381471014,12.49453364,240.69,240.65,1.44619938]
[1758381471316,1.44619938,240.77,240.68,1.44619938]
[1758381471504,4.83316886,240.78,240.7,1.44619938]
[1758381471705,4.83316886,240.78,240.71,2.16619938]
[1758381472029,4.83316886,240.78,240.72,1.44619938]
[1758381472714,4.83316886,240.78,240.72,2.16619938]
[1758381472715,4.15316886,240.78,240.72,2.16619938]
[1758381473595,4.15316886,240.78,240.73,1.44619938]
[1758381474009,4.15316886,240.78,240.73,2.16619938]
[1758381474398,4.83316886,240.78,240.73,2.16619938]
[1758381474596,4.15316886,240.78,240.73,2.16619938]
[1758381474814,4.83316886,240.78,240.72,1.44619938]
[1758381475891,4.15316886,240.78,240.72,1.44619938]
[1758381476111,4.15316886,240.78,240.73,0.69]
[1758381476412,2.88281976,240.79,240.74,1.44619938]
[1758381476413,4.25311704,240.79,240.74,1.44619938]
[1758381476599,4.94311704,240.79,240.74,1.44619938]
[1758381476795,4.94311704,240.79,240.74,0.69]
[1758381477002,0.69,240.78,240.73,1.44619938]
[1758381477197,4.25311704,240.79,240.74,2.13619938]
[1758381477397,4.25311704,240.79,240.75,2.13619938]
[1758381477820,0.1,240.79,240.75,1.44619938]
[1758381478008,0.1,240.79,240.76,0.69]
[1758381478730,0.69,240.78,240.72,0.69]
[1758381479098,0.69,240.78,240.72,2.13619938]
[1758381479298,4.94304217,240.79,240.72,2.13619938]
[1758381479996,0.69,240.78,240.72,2.13619938]
[1758381480198,0.69,240.78,240.72,0.69]
[1758381480398,0.69,240.78,240.72,6.29028488]
[1758381481226,0.1,240.79,240.74,1.44619938]
[1758381481404,0.1,240.79,240.75,0.69]
[1758381481606,0.1,240.79,240.74,2.13619938]
[1758381481812,0.79,240.79,240.74,2.13619938]
[1758381482008,0.79,240.79,240.75,0.69]
[1758381482009,0.1,240.79,240.75,0.69]
[1758381482325,0.1,240.79,240.76,2.13619938]
[1758381483321,0.1,240.79,240.75,1.44619938]
[1758381483707,0.1,240.79,240.72,32.34]
[1758381483906,0.1,240.79,240.75,0.69]
[1758381484107,0.1,240.79,240.75,2.13619938]
[1758381484304,4.25302365,240.79,240.75,0.69]
[1758381484517,4.25302365,240.79,240.75,2.13619938]
[1758381484723,0.1,240.79,240.76,0.69]
[1758381484904,0.1,240.79,240.77,0.69]
[1758381485105,0.1,240.79,240.77,2.13619938]
[1758381485310,0.1,240.79,240.78,0.69]
[1758381486036,12.358953,240.79,240.78,0.69]
[1758381487133,12.358953,240.79,240.78,2.94604987]
[1758381487435,12.358953,240.79,240.78,0.69]
[1758381488408,12.358953,240.79,240.78,7.09921873]
[1758381488718,12.358953,240.79,240.78,20.69481274]
[1758381489336,12.358953,240.79,240.78,16.54164388]
[1758381489541,12.358953,240.79,240.78,14.28559401]
[1758381489838,12.358953,240.79,240.78,16.54164388]
[1758381490127,12.358953,240.79,240.78,2.94604987]
[1758381490321,12.358953,240.79,240.78,0.69]
[1758381490521,12.358953,240.79,240.78,2.94604987]
[1758381491432,12.358953,240.79,240.78,0.69]
[1758381491734,12.358953,240.79,240.78,2.94604987]
[1758381491915,12.358953,240.79,240.78,34.59604987]
[1758381492116,17.18194938,240.79,240.77,32.34]
[1758381492417,17.18194938,240.79,240.75,2.25604987]
[1758381492730,17.18194938,240.79,240.75,32.34]
[1758381492932,0.67,240.78,240.73,2.25604987]
[1758381493132,0.67,240.78,240.74,34.59604987]
[1758381493333,4.82323171,240.78,240.74,32.34]
[1758381493633,4.15323171,240.78,240.74,35.28604987]
[1758381493836,4.82323171,240.78,240.74,34.59604987]
[1758381494038,4.15323171,240.78,240.75,0.69]
[1758381494331,16.51195405,240.79,240.76,2.25604987]
[1758381494741,16.51195405,240.79,240.76,2.94604987]
[1758381494918,16.51195405,240.79,240.74,33.03]
[1758381495126,17.18195405,240.79,240.76,2.25604987]
[1758381495427,12.358953,240.79,240.76,2.94604987]
[1758381495812,12.358953,240.79,240.76,0.69]
[1758381496013,12.358953,240.79,240.76,2.94604987]
[1758381496237,12.358953,240.79,240.76,2.25604987]
[1758381496740,12.358953,240.79,240.76,2.94604987]
[1758381496911,12.358953,240.79,240.74,32.34]
[1758381497106,16.51200382,240.79,240.75,0.69]
[1758381497336,16.51200382,240.79,240.77,2.25604987]
[1758381497732,0.67,240.78,240.71,0.69]
[1758381497912,3.45844247,240.78,240.73,2.25604987]
[1758381498114,12.358953,240.79,240.75,2.25604987]
[1758381498334,12.358953,240.79,240.77,2.25604987]
[1758381498853,12.358953,240.79,240.77,2.94604987]
[1758381499046,12.358953,240.79,240.77,2.25604987]
[1758381500130,12.358953,240.79,240.77,2.94604987]
[1758381500442,12.358953,240.79,240.77,2.25604987]
[1758381501310,0.67,240.78,240.73,0.69]
[1758381501521,0.67,240.78,240.72,32.32]
[1758381501522,0.67,240.77,240.74,2.25604987]
[1758381502121,13.028953,240.79,240.74,2.25604987]
[1758381502420,0.67,240.78,240.74,2.25604987]
[1758381502933,0.67,240.78,240.72,37.1641994]
[1758381502934,0.67,240.77,240.73,34.57604987]
[1758381503144,27.56447828,240.79,240.73,34.57604987]
[1758381504143,3.45860865,240.78,240.73,34.57604987]
[1758381504320,0.67,240.77,240.73,34.57604987]
[1758381504515,2.78860865,240.78,240.73,32.32]
[1758381504720,0.67,240.76,240.73,32.32]
[1758381504928,3.45860865,240.78,240.73,32.32]
[1758381505141,0.67,240.77,240.73,32.32]
[1758381505642,0.67,240.77,240.73,34.57604987]
[1758381506336,12.358953,240.79,240.75,2.25604987]
[1758381506545,12.358953,240.79,240.76,2.25604987]
[1758381506718,12.358953,240.79,240.78,2.25604987]
[1758381508418,19.97215325,240.79,240.75,2.25604987]
[1758381508620,2.7902687,240.78,240.75,2.25604987]
[1758381508814,17.18202436,240.79,240.75,2.25604987]
[1758381509250,2.79054864,240.78,240.75,2.25604987]
[1758381509446,13.028953,240.79,240.75,2.25604987]
[1758381509622,12.358953,240.79,240.77,2.25604987]
[1758381510732,12.358953,240.79,240.77,2.93604987]
[1758381510926,12.358953,240.79,240.77,2.25604987]
[1758381511129,12.358953,240.79,240.77,6.40927824]
[1758381511339,12.358953,240.79,240.77,7.08927824]
[1758381511744,12.358953,240.79,240.78,2.25604987]
[1758381511940,12.358953,240.79,240.78,2.93604987]
[1758381513151,12.358953,240.79,240.78,7.08921873]
[1758381513943,12.358953,240.79,240.78,39.56921873]
[1758381514532,12.358953,240.79,240.78,53.44913588]
[1758381514732,0.24874559,240.85,240.79,0.28432314]
[1758381514953,0.24874559,240.85,240.84,2.25604987]
[1758381515251,0.24874559,240.85,240.84,35.39604987]
[1758381515630,0.24874559,240.85,240.84,34.71604987]
[1758381519555,0.24874559,240.85,240.84,39.54818406]
[1758381519942,0.24874559,240.85,240.84,37.29213419]
[1758381520152,0.24874559,240.85,240.84,39.54818406]
[1758381520654,0.24874559,240.85,240.84,53.28593964]
[1758381521041,0.24874559,240.85,240.84,53.14377807]
[1758381523140,0.24874559,240.85,240.8,0.68]
[1758381523354,0.24874559,240.85,240.83,2.25604987]
[1758381523551,0.24874559,240.85,240.84,32.4]
[1758381524064,0.24874559,240.85,240.84,34.65604987]
[1758381524740,0.24874559,240.85,240.84,32.4]
[1758381525251,0.24874559,240.85,240.84,34.65604987]
[1758381526061,0.24874559,240.85,240.84,32.4]
[1758381526258,0.24874559,240.85,240.84,53.08377807]
[1758381526559,0.24874559,240.85,240.84,53.22593964]
[1758381526758,0.24874559,240.85,240.84,53.08377807]
[1758381528744,0.24874559,240.85,240.84,53.22593964]
[1758381529656,0.24874559,240.85,240.84,50.96988977]
[1758381529865,0.24874559,240.85,240.84,53.22593964]
[1758381530173,0.24874559,240.85,240.84,50.8277282]
[1758381530397,0.1,240.89,240.85,13.59559401]
[1758381530667,0.1,240.89,240.88,47.05164388]
[1758381530879,0.1,240.89,240.88,79.45164388]
[1758381531164,0.1,240.89,240.88,80.13164388]
[1758381532259,0.1,240.89,240.88,84.28308858]
[1758381532760,0.1,240.93,240.89,13.59559401]
[1758381532964,0.1,240.93,240.92,2.25604987]
[1758381533152,0.1,240.93,240.92,34.67604987]
[1758381533347,0.1,240.93,240.92,48.95164388]
[1758381533955,0.1,240.93,240.92,53.10239931]
[1758381534155,0.1,240.93,240.92,50.84634944]
[1758381534359,0.1,240.93,240.92,53.10239931]
[1758381535347,0.1,240.93,240.92,50.16634944]
[1758381535672,0.1,240.93,240.92,38.8268053]
[1758381537072,0.1,240.93,240.92,52.42239931]
[1758381537576,0.1,240.93,240.92,53.08239931]
[1758381538263,0.1,240.94,240.93,13.59559401]
[1758381538471,0.1,240.94,240.93,18.76769375]
[1758381539172,0.1,240.94,240.93,16.51164388]
[1758381540175,0.1,240.94,240.93,20.66222703]
[1758381541577,0.1,240.94,240.93,6.40663302]
[1758381542690,0.1,240.94,240.93,7.07663302]
[1758381543482,0.1,240.94,240.93,22.9282769]
[1758381543989,0.1,240.94,240.93,35.28286188]
[1758381544181,0.1,240.94,240.93,32.35681201]
[1758381544365,0.1,240.99,240.96,2.25604987]
[1758381544366,0.8,240.99,240.96,2.25604987]
[1758381544684,0.1,240.99,240.98,2.25604987]
[1758381545285,0.8,240.99,240.95,32.4]
[1758381545485,0.7,240.98,240.95,34.65604987]
[1758381545691,0.7,240.97,240.95,38.80624664]
[1758381545868,0.1,240.99,240.96,2.25604987]
[1758381546069,4.24957535,240.99,240.97,32.42]
[1758381546286,0.1,240.99,240.97,2.25604987]
[1758381546588,0.7,240.98,240.97,2.25604987]
[1758381546773,0.7,240.98,240.96,34.67604987]
[1758381547088,0.7,240.97,240.96,34.67604987]
[1758381547289,0.1,240.99,240.97,13.59559401]
[1758381547496,0.1,241.09,241.0,4.14937759]
[1758381547676,0.1,241.09,241.08,2.25604987]
[1758381547884,0.1,241.09,241.08,33.93986638]
[1758381548685,0.1,241.09,241.08,34.60986638]
[1758381548883,0.1,241.09,241.08,48.20546039]
[1758381549684,0.1,241.09,241.08,52.35346105]
[1758381550284,0.7,241.14,241.09,13.59559401]
[1758381550508,0.7,241.14,241.08,37.31800066]
[1758381550509,0.7,241.14,241.1,32.5]
[1758381551003,0.7,241.14,241.13,1.43986638]
[1758381551171,0.7,241.14,241.13,33.93986638]
[1758381551571,0.7,241.17,241.13,33.93986638]
[1758381551802,0.7,241.16,241.14,1.43986638]
[1758381552107,4.14628078,241.18,241.15,32.5]
[1758381552582,0.7,241.17,241.15,32.5]
[1758381552785,0.7,241.16,241.15,32.5]
[1758381553292,4.84662464,241.16,241.15,32.5]
[1758381553684,4.14662464,241.16,241.15,32.5]
[1758381553881,4.84662464,241.16,241.15,32.5]
[1758381554081,4.84662464,241.16,241.13,32.48]
[1758381554292,0.7,241.15,241.13,32.48]
[1758381554476,0.7,241.14,241.13,32.48]
[1758381555385,4.84696856,241.14,241.13,32.48]
[1758381555588,0.8,241.19,241.13,34.58986638]
[1758381555782,0.8,241.19,241.13,33.15]
[1758381555982,0.8,241.19,241.17,1.43986638]
[1758381556501,0.8,241.19,241.16,32.5]
[1758381557791,4.94611709,241.19,241.16,32.5]
[1758381558484,4.24611709,241.19,241.16,32.5]
[1758381558672,0.1,241.19,241.16,32.5]
[1758381558869,0.1,241.19,241.16,33.17]
[1758381559072,0.1,241.19,241.16,34.60986638]
[1758381559689,0.1,241.19,241.16,32.5]
[1758381559890,0.1,241.19,241.16,33.93986638]
[1758381560290,0.1,241.19,241.17,0.67]